[Event "4NCL Div 1 2018-19"]
[Site "Telford"]
[Date "2019.02.09"]
[Round "5.31"]
[White "Quinn, John M"]
[Black "Sygnowski, Tomasz"]
[Result "1/2-1/2"]
[ECO "D61"]
[WhiteElo "2163"]
[BlackElo "2153"]
[Annotator "NA"]
[PlyCount "33"]
[EventDate "2018.11.10"]
[EventType "team-tourn"]
[EventCountry "GBR"]
[SourceTitle "playchess.com"]
[Source "ChessBase"]
[SourceQuality "1"]
[TimeControl "40/6000+30:3000+30"]

1. d4 {[%emt 0:00:00]} Nf6 {[%emt 0:00:02]} 2. c4 {[%emt 0:00:00]} e6 {[%emt 0:00:07]} 3. Nc3 {[%emt 0:00:12]} d5 {[%emt 0:00:07]} 4. Bg5 {[%emt 0:01:48]} Be7 {[%emt 0:00:08]} 5. e3 {[%emt 0:01:47]} O-O {[%emt 0:00:23]} 6. Nf3 {[%emt 0:00:14]} a6 {[%emt 0:00:12]} 7. cxd5 {[%emt 0:03:42]} exd5 {[%emt 0:00:08]} 8. Qc2 {[%emt 0:00:36]} Nbd7 {[%emt 0:00:35]} 9. Rd1 {[%emt 0:02:11]} Re8 {[%emt 0:00:49]} 10. Bd3 {[%emt 0:16:50]} c6 {[%emt 0:01:47]} 11. O-O {[%emt 0:09:12]} Nf8 {[%emt 0:00:06]} 12. h3 {[%emt 0:06:16]} Ng6 {[%emt 0:06:25]} 13. Ne5 {[%emt 0:03:48]} Ne4 {[%emt 0:15:34]} 14. Bxe7 {[%emt 0:07:05]} Qxe7 {[%emt 0:00:41]} 15. Nxe4 {[%emt 0:09:01]} dxe4 {[%emt 0:06:00]} 16. Bxe4 {[%emt 0:01:20]} Nxe5 {[%emt 0:00:12]} 17. dxe5 {[%emt 0:02:17]} 1/2-1/2

[Event "4NCL Div 1 2018-19"]
[Site "Telford"]
[Date "2019.02.09"]
[Round "5.31"]
[White "White, Stuart A"]
[Black "Jackson, James P"]
[Result "0-1"]
[ECO "E92"]
[WhiteElo "2113"]
[BlackElo "2383"]
[Annotator "ChessBase"]
[PlyCount "126"]
[EventDate "2018.11.10"]
[EventType "team-tourn"]
[EventCountry "GBR"]
[SourceTitle "playchess.com"]
[Source "ChessBase"]
[SourceQuality "1"]
[TimeControl "40/6000+30:3000+30"]

1. d4 {[%emt 0:00:00]} Nf6 {[%emt 0:00:00]} 2. c4 {[%emt 0:00:00]} g6 {[%emt 0:00:00]} 3. Nc3 {[%emt 0:00:05]} Bg7 {[%emt 0:00:00]} 4. e4 {[%emt 0:00:22]} d6 {[%emt 0:00:00]} 5. Nf3 {[%emt 0:00:19]} O-O {[%emt 0:00:00]} 6. Be2 {[%emt 0:00:31]} e5 {[%emt 0:00:07]} 7. d5 {[%emt 0:00:05]} a5 {[%emt 0:00:24]} 8. Bg5 {[%emt 0:00:34]} h6 {[%emt 0:00:06]} 9. Bh4 {[%emt 0:00:12]} Na6 {[%emt 0:00:47]} 10. Nd2 {[%emt 0:00:53]} Bd7 {[%emt 0:00:24]} 11. O-O {[%emt 0:02:03]} Qe8 {[%emt 0:00:16]} 12. b3 {[%emt 0:02:27]} Nh7 {[%emt 0:00:17]} 13. a3 {[%emt 0:01:12]} h5 {[%emt 0:01:15]} 14. f3 {[%emt 0:00:16]} Bh6 {[%emt 0:00:06]} 15. Rb1 {[%emt 0:02:28]} Be3+ {[%emt 0:00:42]} 16. Kh1 {[%emt 0:00:28]} Bc5 {[%emt 0:00:23]} 17. Qc1 {[%emt 0:01:57]} f5 {[%emt 0:00:29]} 18. exf5 {[%emt 0:01:36]} gxf5 {[%emt 0:00:07]} 19. f4 {[%emt 0:01:47]} e4 {[%emt 0:04:18]} 20. Re1 {[%emt 0:06:02]} Be3 {[%emt 0:02:52]} 21. g3 {[%emt 0:02:21]} Bf2 {[%emt 0:00:28]} 22. Rf1 {[%emt 0:02:46]} Bc5 {[%emt 0:00:08]} 23. Nd1 {[%emt 0:22:46]} Qg6 {[%emt 0:07:14]} 24. Re1 {[%emt 0:03:28]} Nf6 {[%emt 0:19:01]} 25. Nf1 {[%emt 0:06:28]} Ng4 {[%emt 0:17:48]} 26. Kg2 {[%emt 0:15:12]} Rae8 {[%emt 0:06:34]} 27. h3 {[%emt 0:02:11]} Nf6 {[%emt 0:00:30]} 28. Nfe3 {[%emt 0:01:02]} c6 {[%emt 0:18:49]} 29. Kh2 {[%emt 0:07:32]} cxd5 {[%emt 0:07:14]} 30. Bxf6 {[%emt 0:10:32]} Rxf6 {[%emt 0:00:14]} 31. Nxd5 {[%emt 0:00:12]} Rf7 {[%emt 0:00:33]} 32. N1e3 {[%emt 0:02:35]} Be6 {[%emt 0:04:39]} 33. Rg1 {[%emt 0:05:43]} Bxd5 {[%emt 0:00:51]} 34. cxd5 {[%emt 0:00:08]} Rg7 {[%emt 0:01:06]} 35. Rg2 {[%emt 0:03:52]} Rf8 {[%emt 0:02:49]} 36. Nc4 {[%emt 0:03:18]} Bf2 {[%emt 0:00:31]} 37. Qc3 {[%emt 0:03:38]} e3 {[%emt 0:03:28]} 38. Nxe3 {[%emt 0:00:33]} Bxg3+ {[%emt 0:00:07]} 39. Kh1 {[%emt 0:00:08]} Nc5 {[%emt 0:00:13]} 40. Bf3 {[%emt 0:01:17]} Qh6 {[%emt 0:08:53]} 41. b4 {[%emt 0:10:14]} axb4 {[%emt 0:07:09]} 42. axb4 {[%emt 0:00:05]} Na4 {[%emt 0:15:01]} 43. Qd4 {[%emt 0:09:07]} Qxf4 {[%emt 0:00:37]} 44. Qxf4 {[%emt 0:00:46]} Bxf4 {[%emt 0:00:06]} 45. Rxg7+ {[%emt 0:00:15]} Kxg7 {[%emt 0:00:06]} 46. Ng2 {[%emt 0:00:18]} Be5 {[%emt 0:00:16]} 47. Rg1 {[%emt 0:05:58]} Kh6 {[%emt 0:24:49]} 48. Nh4 {[%emt 0:01:58]} Rf6 {[%emt 0:00:04]} 49. Rg8 {[%emt 0:00:37]} Nc3 {[%emt 0:00:04]} 50. Rh8+ {[%emt 0:05:29]} Kg5 {[%emt 0:00:25]} 51. Ng2 {[%emt 0:00:17]} Rh6 {[%emt 0:00:49]} 52. Rg8+ {[%emt 0:04:04]} Rg6 {[%emt 0:00:25]} 53. Rb8 {[%emt 0:01:48]} b5 {[%emt 0:03:16]} 54. Kg1 {[%emt 0:01:02]} Kh6 {[%emt 0:00:45]} 55. Kf2 {[%emt 0:02:30]} Bd4+ {[%emt 0:00:19]} 56. Ke1 {[%emt 0:03:29]} Rg3 {[%emt 0:00:20]} 57. Nh4 {[%emt 0:05:09]} Kg5 {[%emt 0:00:33]} 58. Nxf5 {[%emt 0:00:22]} Kxf5 {[%emt 0:00:20]} 59. Bxh5 {[%emt 0:00:15]} Rxh3 {[%emt 0:01:07]} 60. Bf7 {[%emt 0:01:49]} Ke4 {[%emt 0:00:39]} 61. Kd2 {[%emt 0:00:41]} Rh2+ {[%emt 0:00:14]} 62. Ke1 {[%emt 0:00:39]} Re2+ {[%emt 0:00:16]} 63. Kf1 {[%emt 0:00:08]} Rf2+ {[%emt 0:00:06]} 0-1

[Event "4NCL Div 1 2018-19"]
[Site "Telford"]
[Date "2019.02.09"]
[Round "5.32"]
[White "Manelidou, Maria"]
[Black "Webster, David"]
[Result "1-0"]
[ECO "B31"]
[WhiteElo "2069"]
[BlackElo "1964"]
[Annotator "NA"]
[PlyCount "97"]
[EventDate "2018.11.10"]
[EventType "team-tourn"]
[EventCountry "GBR"]
[SourceTitle "playchess.com"]
[Source "ChessBase"]
[SourceQuality "1"]
[TimeControl "40/6000+30:3000+30"]

1. e4 {[%emt 0:00:00]} c5 {[%emt 0:00:00]} 2. Be2 {[%emt 0:00:00]} Nc6 {[%emt 0:00:11]} 3. f4 {[%emt 0:00:00]} d5 {[%emt 0:03:49]} 4. exd5 {[%emt 0:04:53]} Qxd5 {[%emt 0:00:15]} 5. Bf3 {[%emt 0:00:52]} Qd6 {[%emt 0:03:23]} 6. Bxc6+ {[%emt 0:01:11]} Qxc6 {[%emt 0:00:18]} 7. Nf3 {[%emt 0:00:29]} Qe4+ {[%emt 0:01:52]} 8. Qe2 {[%emt 0:02:37]} Qxe2+ {[%emt 0:09:23]} 9. Kxe2 {[%emt 0:00:05]} Nf6 {[%emt 0:00:23]} 10. Nc3 {[%emt 0:05:09]} Be6 {[%emt 0:07:32]} 11. h3 {[%emt 0:05:53]} Nd5 {[%emt 0:06:34]} 12. d3 {[%emt 0:04:12]} Nxc3+ {[%emt 0:03:58]} 13. bxc3 {[%emt 0:00:08]} g6 {[%emt 0:00:11]} 14. Rb1 {[%emt 0:07:31]} b6 {[%emt 0:04:35]} 15. c4 {[%emt 0:03:13]} Bg7 {[%emt 0:04:43]} 16. a4 {[%emt 0:05:19]} O-O {[%emt 0:03:35]} 17. Bb2 {[%emt 0:10:49]} f6 {[%emt 0:04:38]} 18. Bc3 {[%emt 0:03:26]} Bd7 {[%emt 0:04:41]} 19. a5 {[%emt 0:03:04]} Rfb8 {[%emt 0:01:37]} 20. axb6 {[%emt 0:07:08]} axb6 {[%emt 0:00:20]} 21. Rb2 {[%emt 0:02:02]} Ra3 {[%emt 0:10:02]} 22. Bd2 {[%emt 0:15:03]} b5 {[%emt 0:05:10]} 23. cxb5 {[%emt 0:01:43]} Rxb5 {[%emt 0:00:32]} 24. Rxb5 {[%emt 0:05:05]} Bxb5 {[%emt 0:00:05]} 25. Rb1 {[%emt 0:00:25]} Ba4 {[%emt 0:08:02]} 26. Rb8+ {[%emt 0:06:23]} Bf8 {[%emt 0:02:43]} 27. f5 {[%emt 0:02:14]} Kf7 {[%emt 0:04:29]} 28. fxg6+ {[%emt 0:01:10]} hxg6 {[%emt 0:00:07]} 29. c3 {[%emt 0:00:49]} Bc6 {[%emt 0:04:40]} 30. Rc8 {[%emt 0:03:33]} Ra6 {[%emt 0:00:54]} 31. Nh4 {[%emt 0:02:15]} g5 {[%emt 0:01:55]} 32. Nf3 {[%emt 0:00:07]} e6 {[%emt 0:03:07]} 33. Rc7+ {[%emt 0:00:55]} Be7 {[%emt 0:01:42]} 34. Nxg5+ {[%emt 0:02:20]} fxg5 {[%emt 0:05:45]} 35. Bxg5 {[%emt 0:00:08]} Bxg2 {[%emt 0:00:51]} 36. Rxe7+ {[%emt 0:01:28]} Kg6 {[%emt 0:01:10]} 37. h4 {[%emt 0:00:09]} c4 {[%emt 0:01:15]} 38. dxc4 {[%emt 0:00:50]} Rc6 {[%emt 0:00:29]} 39. c5 {[%emt 0:03:27]} Bd5 {[%emt 0:01:19]} 40. Be3 {[%emt 0:00:40]} Kh5 {[%emt 0:02:07]} 41. Rh7+ {[%emt 0:50:34]} Kg6 {[%emt 0:50:19]} 42. Rh8 {[%emt 0:01:06]} Ra6 {[%emt 0:00:00]} 43. h5+ {[%emt 0:00:00]} Kf5 {[%emt 0:00:00]} 44. Rf8+ {[%emt 0:00:00]} Ke5 {[%emt 0:00:00]} 45. Kd3 {[%emt 0:00:00]} Be4+ {[%emt 0:00:00]} 46. Kc4 {[%emt 0:00:00]} Bf5 {[%emt 0:00:00]} 47. h6 {[%emt 0:00:00]} Ra7 {[%emt 0:00:00]} 48. c6 {[%emt 0:00:00]} Kd6 {[%emt 0:00:00]} 49. Bxa7 {[%emt 0:00:00] Kd5+ [%emt 00:00:08]} 1-0